fUSD/lending_fUSD_20260513
["ID","MTS","AMOUNT","RATE_DAILY","PERIOD"]
[422196514,1778680256000,-196.0,0.00034601,30]
[422196518,1778680256000,-151.0,0.00034648,30]
[422196524,1778680256000,-150.0,0.00035,2]
[422196525,1778680256000,-203.8818299,0.00035,120]
[422196528,1778680256000,-287775.05359024,0.00035,2]
[422196529,1778680256000,-641.34,0.00035018,120]
[422196510,1778680256000,-202.0,0.00034601,30]
[422196530,1778680256000,-500.0,0.00035021,3]
[422196536,1778680256000,-273.35978304,0.00035021,3]
[422196540,1778680256000,-300.0,0.00035021,3]
[422196548,1778680256000,-21465.71,0.00035419,30]
[422196549,1778680256000,-183.62122166,0.00035572,120]
[422196538,1778680256000,-273.35978304,0.00035021,3]
[422196534,1778680256000,-240.41966814,0.00035021,3]
[422196542,1778680256000,-300.0,0.00035021,3]
[422196547,1778680256000,-1097.67,0.00035319,7]
[422196531,1778680256000,-500.0,0.00035021,3]
[422196526,1778680256000,-8708.66398015,0.00035,2]
[422196535,1778680256000,-500.0,0.00035021,3]
[422196533,1778680256000,-500.0,0.00035021,3]
[422196532,1778680256000,-500.0,0.00035021,3]
[422196527,1778680256000,-346.6412305,0.00035,30]
[422196615,1778680257000,-3097.800975,0.00035616,7]
[422196624,1778680257000,-151.0,0.00035616,7]
[422196614,1778680257000,-151.0,0.00035616,7]
[422196613,1778680257000,-160.869846,0.00035616,7]
[422196605,1778680257000,-823.661573,0.00035616,7]
[422196607,1778680257000,-823.661573,0.00035616,7]
[422196606,1778680257000,-795.860581,0.00035616,7]
[422196610,1778680257000,-823.661573,0.00035616,7]
[422196617,1778680257000,-3097.800975,0.00035616,7]
[422196612,1778680257000,-151.0,0.00035616,7]
[422196609,1778680257000,-795.860581,0.00035616,7]
[422196608,1778680257000,-795.860581,0.00035616,7]
[422196621,1778680257000,-467.138516,0.00035616,7]
[422196618,1778680257000,-3097.800975,0.00035616,7]
[422196616,1778680257000,-3097.800975,0.00035616,7]
[422196619,1778680257000,-467.138516,0.00035616,7]
[422196622,1778680257000,-467.138516,0.00035616,7]
[422196623,1778680257000,-167.340599,0.00035616,7]
[422196625,1778680257000,-151.0,0.00035616,7]
[422196634,1778680257000,-151.0,0.00035616,7]
[422196626,1778680257000,-411.254446,0.00035616,7]
[422196629,1778680257000,-206.95296,0.00035616,7]
[422196628,1778680257000,-411.254446,0.00035616,7]
[422196604,1778680257000,-795.860581,0.00035616,7]
[422196635,1778680257000,-151.0,0.00035616,7]
[422196620,1778680257000,-467.138516,0.00035616,7]
[422196601,1778680257000,-151.0,0.00035616,7]
[422196586,1778680257000,-154.175298,0.00035616,7]
[422196603,1778680257000,-151.0,0.00035616,7]
[422196627,1778680257000,-206.95296,0.00035616,7]
[422196577,1778680257000,-434.612742,0.00035616,7]
[422196580,1778680257000,-290.336006,0.00035616,7]
[422196587,1778680257000,-2106.68412,0.00035616,7]
[422196583,1778680257000,-179.714701,0.00035616,7]
[422196581,1778680257000,-290.336006,0.00035616,7]
[422196584,1778680257000,-151.0,0.00035616,7]
[422196582,1778680257000,-151.0,0.00035616,7]
[422196585,1778680257000,-151.0,0.00035616,7]
[422196578,1778680257000,-290.336006,0.00035616,7]
[422196588,1778680257000,-2106.68412,0.00035616,7]
[422196579,1778680257000,-290.336006,0.00035616,7]
[422196589,1778680257000,-2106.68412,0.00035616,7]
[422196591,1778680257000,-151.0,0.00035616,7]
[422196590,1778680257000,-2106.68412,0.00035616,7]
[422196592,1778680257000,-151.0,0.00035616,7]
[422196593,1778680257000,-955.923743,0.00035616,7]
[422196595,1778680257000,-955.923743,0.00035616,7]
[422196594,1778680257000,-741.13727,0.00035616,7]
[422196596,1778680257000,-741.13727,0.00035616,7]
[422196598,1778680257000,-741.13727,0.00035616,7]
[422196597,1778680257000,-955.923743,0.00035616,7]
[422196599,1778680257000,-955.923743,0.00035616,7]
[422196602,1778680257000,-151.0,0.00035616,7]
[422196600,1778680257000,-741.13727,0.00035616,7]
[422196611,1778680257000,-823.661573,0.00035616,7]
[422196636,1778680257000,-206.95296,0.00035616,7]
[422196631,1778680257000,-151.0,0.00035616,7]
[422196674,1778680257000,-500.0,0.00035616,7]
[422196662,1778680257000,-500.0,0.00035616,7]
[422196667,1778680257000,-500.0,0.00035616,7]
[422196664,1778680257000,-500.0,0.00035616,7]
[422196690,1778680257000,-1000.0,0.00035616,10]
[422196669,1778680257000,-500.0,0.00035616,7]
[422196663,1778680257000,-500.0,0.00035616,7]
[422196670,1778680257000,-500.0,0.00035616,7]
[422196668,1778680257000,-462.99575611,0.00035616,7]
[422196673,1778680257000,-500.0,0.00035616,7]
[422196675,1778680257000,-500.0,0.00035616,7]
[422196676,1778680257000,-500.0,0.00035616,7]
[422196677,1778680257000,-500.0,0.00035616,7]
[422196678,1778680257000,-500.0,0.00035616,7]
[422196685,1778680257000,-151.0,0.00035616,7]
[422196684,1778680257000,-500.0,0.00035616,7]
[422196680,1778680257000,-500.0,0.00035616,7]
[422196679,1778680257000,-500.0,0.00035616,7]
[422196681,1778680257000,-500.0,0.00035616,7]
[422196682,1778680257000,-500.0,0.00035616,7]
[422196683,1778680257000,-500.0,0.00035616,7]
[422196687,1778680257000,-1000.0,0.00035616,10]
[422196688,1778680257000,-1000.0,0.00035616,10]
[422196686,1778680257000,-151.0,0.00035616,7]
[422196689,1778680257000,-1000.0,0.00035616,10]
[422196633,1778680257000,-411.254446,0.00035616,7]
[422196665,1778680257000,-500.0,0.00035616,7]
[422196672,1778680257000,-500.0,0.00035616,7]
[422196666,1778680257000,-500.0,0.00035616,7]
[422196660,1778680257000,-1000.0,0.00035616,120]
[422196630,1778680257000,-411.254446,0.00035616,7]
[422196632,1778680257000,-281.055378,0.00035616,7]
[422196638,1778680257000,-206.95296,0.00035616,7]
[422196637,1778680257000,-281.055378,0.00035616,7]
[422196639,1778680257000,-151.0,0.00035616,7]
[422196640,1778680257000,-281.055378,0.00035616,7]
[422196642,1778680257000,-880.018168,0.00035616,7]
[422196671,1778680257000,-500.0,0.00035616,7]
[422196646,1778680257000,-880.018168,0.00035616,7]
[422196645,1778680257000,-880.018168,0.00035616,7]
[422196647,1778680257000,-5584.617943,0.00035616,7]
[422196643,1778680257000,-880.018168,0.00035616,7]
[422196644,1778680257000,-151.0,0.00035616,7]
[422196641,1778680257000,-281.055378,0.00035616,7]
[422196661,1778680257000,-500.0,0.00035616,7]
[422196648,1778680257000,-5584.617943,0.00035616,7]
[422196656,1778680257000,-1339.225352,0.00035616,7]
[422196657,1778680257000,-1142.714985,0.00035616,7]
[422196654,1778680257000,-1339.225352,0.00035616,7]
[422196655,1778680257000,-1142.714985,0.00035616,7]
[422196658,1778680257000,-1339.225352,0.00035616,7]
[422196659,1778680257000,-151.0,0.00035616,7]
[422196651,1778680257000,-1142.714985,0.00035616,7]
[422196652,1778680257000,-1339.225352,0.00035616,7]
[422196649,1778680257000,-5584.617943,0.00035616,7]
[422196650,1778680257000,-5584.617943,0.00035616,7]
[422196653,1778680257000,-1142.714985,0.00035616,7]
[422196734,1778680258000,-277235.0,0.000364,30]
[422196732,1778680258000,-151.53,0.00036399,60]
[422196733,1778680258000,-19775.47317338,0.000364,6]
[422196739,1778680258000,-157.0,0.00036601,30]
[422196722,1778680258000,-345.5,0.00036,7]
[422196724,1778680258000,-1000.0,0.00036048,2]
[422196720,1778680258000,-11831.88148662,0.00036,2]
[422196723,1778680258000,-151.0,0.00036,7]
[422196719,1778680258000,-225.19015647,0.00035964,2]
[422196726,1778680258000,-1000.0,0.00036048,2]
[422196729,1778680258000,-399.0,0.00036226,60]
[422196725,1778680258000,-1000.0,0.00036048,2]
[422196740,1778680258000,-1272.0,0.00036601,30]
[422196697,1778680258000,-594.62,0.00035616,2]
[422196730,1778680258000,-744.19,0.00036244,120]
[422196731,1778680258000,-163.83122474,0.00036261,2]
[422196738,1778680258000,-202.0,0.00036601,30]
[422196742,1778680258000,-196.0,0.00036601,30]
[422196735,1778680258000,-151.0,0.000364,7]
[422196741,1778680258000,-1855.0,0.00036601,30]
[422196737,1778680258000,-41618.0,0.00036584,60]
[422196743,1778680258000,-155.0,0.00036601,30]
[422196745,1778680258000,-151.0,0.00036648,30]
[422196744,1778680258000,-369.0,0.00036601,30]
[422196746,1778680258000,-159.0,0.00036648,30]
[422196750,1778680258000,-41927.0,0.00036871,60]
[422196728,1778680258000,-305.75,0.0003619,10]
[422196736,1778680258000,-211.13,0.0003642,10]
[422196727,1778680258000,-2002.8,0.00036153,30]
[422196691,1778680258000,-1000.0,0.00035616,10]
[422196718,1778680258000,-281.24825172,0.000359,120]
[422196754,1778680258000,-1000.0,0.00036986,120]
[422196693,1778680258000,-1000.0,0.00035616,10]
[422196692,1778680258000,-1000.0,0.00035616,10]
[422196695,1778680258000,-1000.0,0.00035616,10]
[422196700,1778680258000,-1000.0,0.00035616,10]
[422196694,1778680258000,-1000.0,0.00035616,10]
[422196698,1778680258000,-1000.0,0.00035616,10]
[422196701,1778680258000,-1000.0,0.00035616,10]
[422196696,1778680258000,-1000.0,0.00035616,10]
[422196702,1778680258000,-1000.0,0.00035616,10]
[422196699,1778680258000,-1000.0,0.00035616,10]
[422196703,1778680258000,-1000.0,0.00035616,10]
[422196721,1778680258000,-45209.4,0.00036,7]
[422196704,1778680258000,-248.72495622,0.00035616,2]
[422196715,1778680258000,-583.370005,0.00035868,7]
[422196716,1778680258000,-583.370005,0.00035868,7]
[422196707,1778680258000,-159.0,0.00035648,30]
[422196706,1778680258000,-151.0,0.00035648,30]
[422196717,1778680258000,-350.0,0.0003589,5]
[422196708,1778680258000,-2143.0,0.00035648,30]
[422196710,1778680258000,-184.09,0.00035801,30]
[422196714,1778680258000,-583.370005,0.00035868,7]
[422196713,1778680258000,-583.370005,0.00035868,7]
[422196711,1778680258000,-152.0,0.00035832,7]
[422196709,1778680258000,-154.26,0.000357,120]
[422196712,1778680258000,-41618.0,0.00035868,60]
[422196705,1778680258000,-319.21665688,0.00035638,2]
[422196753,1778680258000,-150.0,0.00036929,3]
[422196751,1778680258000,-41618.0,0.00036871,60]
[422196748,1778680258000,-157.57,0.0003669,30]
[422196788,1778680258000,-300.0,0.00037197,2]
[422196787,1778680258000,-300.0,0.00037197,2]
[422196789,1778680258000,-300.0,0.00037197,2]
[422196786,1778680258000,-300.0,0.00037197,2]
[422196784,1778680258000,-300.0,0.00037197,2]
[422196790,1778680258000,-300.00000001,0.00037197,2]
[422196785,1778680258000,-1094.44656272,0.00037197,2]
[422196800,1778680258000,-300.0,0.00037197,2]
[422196799,1778680258000,-300.0,0.00037197,2]
[422196793,1778680258000,-300.0,0.00037197,2]
[422196791,1778680258000,-300.0,0.00037197,2]
[422196796,1778680258000,-444.44387953,0.00037197,2]
[422196792,1778680258000,-300.0,0.00037197,2]
[422196798,1778680258000,-604.28857032,0.00037197,2]
[422196797,1778680258000,-300.0,0.00037197,2]
[422196794,1778680258000,-300.60852153,0.00037197,2]
[422196795,1778680258000,-300.0,0.00037197,2]
[422196802,1778680258000,-301.70878526,0.00037197,2]
[422196803,1778680258000,-300.0,0.00037197,2]
[422196805,1778680258000,-300.0,0.00037197,2]
[422196807,1778680258000,-300.0,0.00037197,2]
[422196804,1778680258000,-300.0,0.00037197,2]
[422196810,1778680258000,-526.74681901,0.00037197,2]
[422196809,1778680258000,-343.88369636,0.00037197,2]
[422196806,1778680258000,-372.35395415,0.00037197,2]
[422196749,1778680258000,-599.58,0.00036849,5]
[422196808,1778680258000,-300.0,0.00037197,2]
[422196780,1778680258000,-300.0,0.00037197,2]
[422196783,1778680258000,-309.75646752,0.00037197,2]
[422196801,1778680258000,-893.15010961,0.00037197,2]
[422196781,1778680258000,-451.7860235,0.00037197,2]
[422196747,1778680258000,-2143.0,0.00036648,30]
[422196782,1778680258000,-300.0,0.00037197,2]
[422196752,1778680258000,-200.0,0.000369,13]
[422196755,1778680258000,-20300.0,0.00037,10]
[422196758,1778680258000,-200000.0,0.00037,2]
[422196757,1778680258000,-6019.0,0.00037,5]
[422196759,1778680258000,-192.0,0.00037018,30]
[422196766,1778680258000,-300.00000001,0.00037197,2]
[422196761,1778680258000,-653.4565,0.00037149,2]
[422196760,1778680258000,-2103.6889,0.00037149,2]
[422196764,1778680258000,-250.0,0.00037166,7]
[422196763,1778680258000,-250.0,0.00037166,7]
[422196765,1778680258000,-1104.29,0.00037193,10]
[422196762,1778680258000,-2227.7007,0.00037149,2]
[422196756,1778680258000,-200.0,0.00037,120]
[422196777,1778680258000,-300.0,0.00037197,2]
[422196779,1778680258000,-300.0,0.00037197,2]
[422196768,1778680258000,-300.0,0.00037197,2]
[422196775,1778680258000,-300.55580641,0.00037197,2]
[422196776,1778680258000,-864.21260631,0.00037197,2]
[422196772,1778680258000,-300.0,0.00037197,2]
[422196773,1778680258000,-300.0,0.00037197,2]
[422196774,1778680258000,-300.51493316,0.00037197,2]
[422196767,1778680258000,-492.49408755,0.00037197,2]
[422196769,1778680258000,-300.00000001,0.00037197,2]
[422196778,1778680258000,-300.0,0.00037197,2]
[422196770,1778680258000,-300.00000001,0.00037197,2]
[422196771,1778680258000,-547.4540886,0.00037197,2]
[422196855,1778680259000,-300.0,0.00037197,2]
[422196848,1778680259000,-725.87349266,0.00037197,2]
[422196854,1778680259000,-300.0,0.00037197,2]
[422196849,1778680259000,-300.0,0.00037197,2]
[422196850,1778680259000,-301.70878526,0.00037197,2]
[422196851,1778680259000,-300.48362119,0.00037197,2]
[422196845,1778680259000,-1066.61966841,0.00037197,2]
[422196843,1778680259000,-300.0,0.00037197,2]
[422196844,1778680259000,-527.6022146,0.00037197,2]
[422196841,1778680259000,-604.28857032,0.00037197,2]
[422196847,1778680259000,-300.0,0.00037197,2]
[422196853,1778680259000,-300.0,0.00037197,2]
[422196846,1778680259000,-893.15010961,0.00037197,2]
[422196857,1778680259000,-300.0,0.00037197,2]
[422196867,1778680259000,-300.15194547,0.00037197,2]
[422196859,1778680259000,-343.88369636,0.00037197,2]
[422196858,1778680259000,-300.56091381,0.00037197,2]
[422196861,1778680259000,-1146.85439814,0.00037197,2]
[422196863,1778680259000,-864.21260631,0.00037197,2]
[422196862,1778680259000,-309.50271907,0.00037197,2]
[422196860,1778680259000,-526.74681901,0.00037197,2]
[422196876,1778680259000,-483.96406548,0.00037197,2]
[422196865,1778680259000,-300.0,0.00037197,2]
[422196875,1778680259000,-300.0,0.00037197,2]
[422196864,1778680259000,-1755.48763153,0.00037197,2]
[422196868,1778680259000,-463.72172131,0.00037197,2]
[422196866,1778680259000,-310.8122113,0.00037197,2]
[422196842,1778680259000,-300.0,0.00037197,2]
[422196856,1778680259000,-300.0,0.00037197,2]
[422196852,1778680259000,-348.57884027,0.00037197,2]
[422196813,1778680259000,-1755.48763153,0.00037197,2]
[422196833,1778680259000,-378.69464343,0.00037197,2]
[422196870,1778680259000,-577.01168213,0.00037197,2]
[422196811,1778680259000,-1146.85439814,0.00037197,2]
[422196812,1778680259000,-864.21260631,0.00037197,2]
[422196814,1778680259000,-300.0,0.00037197,2]
[422196816,1778680259000,-300.57597218,0.00037197,2]
[422196826,1778680259000,-300.0,0.00037197,2]
[422196815,1778680259000,-300.51069385,0.00037197,2]
[422196827,1778680259000,-483.96406548,0.00037197,2]
[422196818,1778680259000,-300.0,0.00037197,2]
[422196824,1778680259000,-300.0,0.00037197,2]
[422196820,1778680259000,-463.72172131,0.00037197,2]
[422196817,1778680259000,-310.8122113,0.00037197,2]
[422196823,1778680259000,-451.7860235,0.00037197,2]
[422196837,1778680259000,-300.0,0.00037197,2]
[422196821,1778680259000,-300.0,0.00037197,2]
[422196822,1778680259000,-300.0,0.00037197,2]
[422196825,1778680259000,-300.0,0.00037197,2]
[422196828,1778680259000,-309.75646752,0.00037197,2]
[422196830,1778680259000,-317.48500943,0.00037197,2]
[422196832,1778680259000,-1094.44656272,0.00037197,2]
[422196839,1778680259000,-300.0,0.00037197,2]
[422196829,1778680259000,-300.98575595,0.00037197,2]
[422196834,1778680259000,-493.96950892,0.00037197,2]
[422196831,1778680259000,-300.0,0.00037197,2]
[422196838,1778680259000,-300.0,0.00037197,2]
[422196835,1778680259000,-300.0,0.00037197,2]
[422196840,1778680259000,-300.81953279,0.00037197,2]
[422196836,1778680259000,-300.0,0.00037197,2]
[422196819,1778680259000,-300.55024054,0.00037197,2]
[422196869,1778680259000,-300.0,0.00037197,2]
[422196933,1778680259000,-604.28857032,0.00037197,2]
[422196872,1778680259000,-451.7860235,0.00037197,2]
[422196915,1778680259000,-463.72172131,0.00037197,2]
[422196906,1778680259000,-343.88369636,0.00037197,2]
[422196916,1778680259000,-300.63750532,0.00037197,2]
[422196904,1778680259000,-300.0,0.00037197,2]
[422196910,1778680259000,-309.50271907,0.00037197,2]
[422196909,1778680259000,-1146.85439814,0.00037197,2]
[422196911,1778680259000,-864.21260631,0.00037197,2]
[422196907,1778680259000,-526.74681901,0.00037197,2]
[422196908,1778680259000,-300.4348941,0.00037197,2]
[422196912,1778680259000,-1933.58055399,0.00037197,2]
[422196923,1778680259000,-309.75646752,0.00037197,2]
[422196874,1778680259000,-300.0,0.00037197,2]
[422196927,1778680259000,-300.63167858,0.00037197,2]
[422196914,1778680259000,-310.8122113,0.00037197,2]
[422196924,1778680259000,-300.0,0.00037197,2]
[422196925,1778680259000,-1094.44656272,0.00037197,2]
[422196928,1778680259000,-300.0,0.00037197,2]
[422196917,1778680259000,-577.01168213,0.00037197,2]
[422196921,1778680259000,-300.0,0.00037197,2]
[422196920,1778680259000,-510.40096168,0.00037197,2]
[422196918,1778680259000,-451.7860235,0.00037197,2]
[422196919,1778680259000,-300.0,0.00037197,2]
[422196929,1778680259000,-492.55383622,0.00037197,2]
[422196931,1778680259000,-364.52848235,0.00037197,2]
[422196932,1778680259000,-300.0,0.00037197,2]
[422196934,1778680259000,-300.0,0.00037197,2]
[422196930,1778680259000,-300.0,0.00037197,2]
[422196935,1778680259000,-300.0,0.00037197,2]
[422196926,1778680259000,-300.86031602,0.00037197,2]
[422196913,1778680259000,-330.01706332,0.00037197,2]
[422196922,1778680259000,-483.96406548,0.00037197,2]
[422196899,1778680259000,-300.0,0.00037197,2]
[422196905,1778680259000,-1911.85385745,0.00037197,2]
[422196873,1778680259000,-300.0,0.00037197,2]
[422196880,1778680259000,-300.50028789,0.00037197,2]
[422196877,1778680259000,-309.75646752,0.00037197,2]
[422196879,1778680259000,-1094.44656272,0.00037197,2]
[422196882,1778680259000,-300.0,0.00037197,2]
[422196886,1778680259000,-300.0,0.00037197,2]
[422196878,1778680259000,-300.0,0.00037197,2]
[422196881,1778680259000,-300.0,0.00037197,2]
[422196890,1778680259000,-300.0,0.00037197,2]
[422196889,1778680259000,-527.6022146,0.00037197,2]
[422196884,1778680259000,-492.55383622,0.00037197,2]
[422196885,1778680259000,-604.28857032,0.00037197,2]
[422196888,1778680259000,-300.0,0.00037197,2]
[422196871,1778680259000,-300.55143648,0.00037197,2]
[422196883,1778680259000,-300.57668455,0.00037197,2]
[422196887,1778680259000,-300.48528773,0.00037197,2]
[422196896,1778680259000,-301.70878526,0.00037197,2]
[422196897,1778680259000,-300.0,0.00037197,2]
[422196900,1778680259000,-300.0,0.00037197,2]
[422196898,1778680259000,-300.48362119,0.00037197,2]
[422196891,1778680259000,-1066.61966841,0.00037197,2]
[422196901,1778680259000,-300.0,0.00037197,2]
[422196895,1778680259000,-300.0,0.00037197,2]
[422196892,1778680259000,-893.15010961,0.00037197,2]
[422196894,1778680259000,-725.87349266,0.00037197,2]
[422196903,1778680259000,-300.0,0.00037197,2]
[422196902,1778680259000,-333.52267303,0.00037197,2]
[422196893,1778680259000,-590.75679528,0.00037197,2]
[422196983,1778680260000,-309.50271907,0.00037197,2]
[422196975,1778680260000,-301.70878526,0.00037197,2]
[422196973,1778680260000,-893.15010961,0.00037197,2]
[422196982,1778680260000,-1146.85439814,0.00037197,2]
[422196967,1778680260000,-492.55383622,0.00037197,2]
[422196968,1778680260000,-604.28857032,0.00037197,2]
[422196970,1778680260000,-300.0,0.00037197,2]
[422196965,1778680260000,-1094.44656272,0.00037197,2]
[422196964,1778680260000,-300.0,0.00037197,2]
[422196981,1778680260000,-526.74681901,0.00037197,2]
[422196969,1778680260000,-300.49400695,0.00037197,2]
[422196972,1778680260000,-1066.61966841,0.00037197,2]
[422196984,1778680260000,-864.21260631,0.00037197,2]
[422196976,1778680260000,-300.0,0.00037197,2]
[422196977,1778680260000,-300.48362119,0.00037197,2]
[422196979,1778680260000,-1911.85385745,0.00037197,2]
[422196978,1778680260000,-948.75057733,0.00037197,2]
[422196980,1778680260000,-343.88369636,0.00037197,2]
[422196985,1778680260000,-310.8122113,0.00037197,2]
[422196986,1778680260000,-463.72172131,0.00037197,2]
[422196987,1778680260000,-577.01168213,0.00037197,2]
[422196995,1778680260000,-492.55383622,0.00037197,2]
[422196989,1778680260000,-307.43808927,0.00037197,2]
[422196988,1778680260000,-451.7860235,0.00037197,2]
[422196962,1778680260000,-309.75646752,0.00037197,2]
[422196974,1778680260000,-725.87349266,0.00037197,2]
[422196963,1778680260000,-300.67485563,0.00037197,2]
[422196990,1778680260000,-483.96406548,0.00037197,2]
[422196960,1778680260000,-300.0,0.00037197,2]
[422196939,1778680260000,-893.15010961,0.00037197,2]
[422196937,1778680260000,-300.44422917,0.00037197,2]
[422196940,1778680260000,-725.87349266,0.00037197,2]
[422196941,1778680260000,-300.57796734,0.00037197,2]
[422196938,1778680260000,-1066.61966841,0.00037197,2]
[422196936,1778680260000,-527.6022146,0.00037197,2]
[422196943,1778680260000,-300.0,0.00037197,2]
[422196954,1778680260000,-864.21260631,0.00037197,2]
[422196953,1778680260000,-309.50271907,0.00037197,2]
[422196944,1778680260000,-300.48362119,0.00037197,2]
[422196942,1778680260000,-301.70878526,0.00037197,2]
[422196945,1778680260000,-300.85800476,0.00037197,2]
[422196947,1778680260000,-300.60868028,0.00037197,2]
[422196948,1778680260000,-300.54321209,0.00037197,2]
[422196946,1778680260000,-300.0,0.00037197,2]
[422196951,1778680260000,-526.74681901,0.00037197,2]
[422196949,1778680260000,-1911.85385745,0.00037197,2]
[422196950,1778680260000,-343.88369636,0.00037197,2]
[422196952,1778680260000,-1146.85439814,0.00037197,2]
[422196958,1778680260000,-451.7860235,0.00037197,2]
[422196957,1778680260000,-577.01168213,0.00037197,2]
[422196959,1778680260000,-300.64672854,0.00037197,2]
[422196955,1778680260000,-310.8122113,0.00037197,2]
[422196956,1778680260000,-463.72172131,0.00037197,2]
[422196961,1778680260000,-483.96406548,0.00037197,2]
[422196971,1778680260000,-527.6022146,0.00037197,2]
[422196992,1778680260000,-300.00000001,0.00037197,2]
[422196966,1778680260000,-300.00000199,0.00037197,2]
[422196991,1778680260000,-309.75646752,0.00037197,2]
[422197024,1778680260000,-527.6022146,0.00037197,2]
[422197025,1778680260000,-1066.61966841,0.00037197,2]
[422197033,1778680260000,-466.14738883,0.00037197,2]
[422197030,1778680260000,-300.83011622,0.00037197,2]
[422197029,1778680260000,-300.0,0.00037197,2]
[422197028,1778680260000,-301.70878526,0.00037197,2]
[422197027,1778680260000,-725.87349266,0.00037197,2]
[422197026,1778680260000,-1192.09369608,0.00037197,2]
[422197032,1778680260000,-1911.85385745,0.00037197,2]
[422197031,1778680260000,-948.75057733,0.00037197,2]
[422197034,1778680260000,-526.74681901,0.00037197,2]
[422197036,1778680260000,-309.50271907,0.00037197,2]
[422197022,1778680260000,-492.55383622,0.00037197,2]
[422197044,1778680260000,-317.48500944,0.00037197,2]
[422197043,1778680260000,-309.75646752,0.00037197,2]
[422197040,1778680260000,-769.99973921,0.00037197,2]
[422197045,1778680260000,-300.0,0.00037197,2]
[422197038,1778680260000,-300.0,0.00037197,2]
[422197037,1778680260000,-460.83723793,0.00037197,2]
[422197035,1778680260000,-1146.85439814,0.00037197,2]
[422197041,1778680260000,-602.8198084,0.00037197,2]
[422197042,1778680260000,-483.96406548,0.00037197,2]
[422197047,1778680260000,-657.38922482,0.00037197,2]
[422197046,1778680260000,-1094.44656272,0.00037197,2]
[422197049,1778680260000,-1066.61966841,0.00037197,2]
[422197048,1778680260000,-527.6022146,0.00037197,2]
[422197039,1778680260000,-463.72172131,0.00037197,2]
[422197023,1778680260000,-804.00416244,0.00037197,2]
[422196993,1778680260000,-300.0,0.00037197,2]
[422197013,1778680260000,-463.72172131,0.00037197,2]
[422197016,1778680260000,-483.96406548,0.00037197,2]
[422196994,1778680260000,-1094.44656272,0.00037197,2]
[422196996,1778680260000,-604.28857032,0.00037197,2]
[422196998,1778680260000,-527.6022146,0.00037197,2]
[422197009,1778680260000,-1146.85439814,0.00037197,2]
[422197008,1778680260000,-526.74681901,0.00037197,2]
[422197003,1778680260000,-300.0,0.00037197,2]
[422197004,1778680260000,-300.48362119,0.00037197,2]
[422197001,1778680260000,-725.87349266,0.00037197,2]
[422197000,1778680260000,-893.15010961,0.00037197,2]
[422197002,1778680260000,-301.70878526,0.00037197,2]
[422196999,1778680260000,-1066.61966841,0.00037197,2]
[422197005,1778680260000,-948.75057733,0.00037197,2]
[422196997,1778680260000,-357.33561885,0.00037197,2]
[422197007,1778680260000,-343.88369636,0.00037197,2]
[422197006,1778680260000,-1911.85385745,0.00037197,2]
[422197050,1778680260000,-725.87349266,0.00037197,2]
[422197018,1778680260000,-317.48500944,0.00037197,2]
[422197021,1778680260000,-300.0,0.00037197,2]
[422197014,1778680260000,-577.01168213,0.00037197,2]
[422197012,1778680260000,-414.7843517,0.00037197,2]
[422197017,1778680260000,-309.75646752,0.00037197,2]
[422197011,1778680260000,-864.21260631,0.00037197,2]
[422197020,1778680260000,-1094.44656272,0.00037197,2]
[422197015,1778680260000,-451.7860235,0.00037197,2]
[422197010,1778680260000,-309.50271907,0.00037197,2]
[422197019,1778680260000,-300.0,0.00037197,2]
[422197090,1778680261000,-21465.71,0.00037346,30]
[422197087,1778680261000,-352.09,0.00037301,2]
[422197089,1778680261000,-2103.6889,0.00037317,2]
[422197091,1778680261000,-151.52436884,0.00037443,60]